Cogmind - Beta 11.1 @@@ ROGUE MODE // 2022.12.03 @ 14:00:10 Player: Candesce Result: Destroyed by S-10 Pest with Light Assault Rifle Performance ------------- Evolutions (2) 1000 Regions Visited (7) 1400 Robots Destroyed (129) 645 Value Destroyed (3939) 3939 Prototype IDs (9) 180 Alien Tech Used (0) 0 Bonus (1055) 1055 TOTAL SCORE: 8219 Bonus ------- High Alert Combat Kills 355 Entered Garrisons 200 Used RIF Installer 500 Cogmind --------- Core Integrity 0/550 Matter 300/300 Energy 290/290 System Corruption 0% Temperature Cool (0) Movement Treading (160) Location -8/Materials Parts ------- > --- POWER (1) -------- Reinforced Deuterium Engine > --- PROPULSION (3) --- Light Treads Improved Medium Treads Improved Medium Treads > --- UTILITY (5) ------ Large Storage Unit Structural Scanner Advanced Targeting Computer Core Analyzer Kinecellerator > --- WEAPON (2) ------- Heavy Flak Cannon Heavy Pick > --- INVENTORY (15) --- Light Treads Light Treads Light Treads Improved Treads Advanced Treads Coolant Injector Advanced Targeting Computer Matter Filter Light Armor Plating Hacking Suite Relay Coupler [NC] (24) EM Pulse Cannon Heavy Particle Cannon Heavy Flak Cannon Mini Grenade Launcher Peak State ------------ > --- POWER ------------ Reinforced Deuterium Engine > --- PROPULSION ------- Light Treads Improved Medium Treads Improved Medium Treads > --- UTILITY ---------- Medium Storage Unit Core Analyzer Matter Filter Kinecellerator Phase Shifter > --- WEAPON ----------- Heavy Flak Cannon Heavy Pick > --- INVENTORY -------- Light Treads Improved Cooling System High-capacity Matter Pod Structural Scanner Relay Coupler [Sentry] Plasma Rifle Plasma Rifle Plasma Rifle Mini Grenade Launcher Mini Grenade Launcher [Rating: 46] Favorites ----------- Power Cooled Ion Engine Engine Cooled Ion Engine Propulsion Light Treads Treads Light Treads Wheel Armored Huge Wheel Utility Medium Storage Unit Device Structural Scanner Storage Medium Storage Unit Processor Core Analyzer Hackware Hacking Suite Protection Light Armor Plating Weapon Improved Light Cannon Energy Gun Medium Laser Ballistic Gun Light Assault Rifle Ballistic Cannon Improved Light Cannon Launcher Mini Grenade Launcher Impact Weapon Maul Piercing Weapon Heavy Pick Special Melee Weapon Datajack Build | -11 -10 -10 -9 -9 -8 -8 -8 ------- Run | Scr Mat Min Mat Min Mat Gar Mat Slots Evolved 4 | . . . 2 . 2 . . Power . | . . . . . . . . Propulsion 1 | . . . . . 1 . . Utility 3 | . . . 2 . 1 . . Weapon . | . . . . . . . . Parts Attached 108 | 8 11 3 28 4 17 34 3 Power 8 | 2 1 1 2 . 1 1 . Engine 8 | 2 1 1 2 . 1 1 . Core . | . . . . . . . . Reactor . | . . . . . . . . Propulsion 21 | 2 2 . 7 . 4 5 1 Treads 19 | 2 2 . 7 . 3 4 1 Leg . | . . . . . . . . Wheel 2 | . . . . . 1 1 . Hover . | . . . . . . . . Flight . | . . . . . . . . Utility 46 | 2 5 . 16 . 9 12 2 Device 20 | 1 1 . 6 . 3 8 1 Storage 3 | 1 1 . . . . . 1 Processor 3 | . . . . . 1 2 . Hackware 1 | . . . 1 . . . . Protection 19 | . 3 . 9 . 5 2 . Artifact . | . . . . . . . . Weapon 33 | 2 3 2 3 4 3 16 . Energy Gun 5 | 1 . . . . . 4 . Energy Cannon . | . . . . . . . . Ballistic Gun 2 | 1 . . . . . 1 . Ballistic Cannon 11 | . 2 . 1 2 2 4 . Launcher 8 | . . 1 1 2 1 3 . Special Weapon . | . . . . . . . . Impact Weapon 2 | . . . 1 . . 1 . Slashing Weapon . | . . . . . . . . Piercing Weapon 3 | . . . . . . 3 . Special Melee Weapon 2 | . 1 1 . . . . . Unidentified Prototypes 1 | . 1 . . . . . . Parts Lost 25 | . 1 . 4 . 4 16 . Power 1 | . . . . . . 1 . Propulsion 5 | . . . . . 1 4 . Utility 14 | . 1 . 3 . 2 8 . Weapon 5 | . . . 1 . 1 3 . Highest Loss Streak 8 | . 1 . 1 . 2 8 . To Critical Strikes . | . . . . . . . . Average Slot Usage (%) 97 | . 100 100 99 100 91 94 100 Engine 11 | . 14 14 11 11 9 8 9 Treads 23 | . 28 28 22 22 15 23 27 Device 9 | . 4 . 8 11 7 20 21 Storage 10 | . 14 14 11 11 9 5 5 Processor 4 | . . . . . 1 14 18 Hackware 4 | . . . 11 11 9 . . Protection 9 | . 9 14 13 11 16 1 . Energy Gun 3 | . 13 . . . . 2 . Ballistic Cannon 10 | . 13 14 11 10 7 6 9 Impact Weapon 3 | . . . 8 11 9 . . Piercing Weapon 1 | . . . . . . 6 9 Special Melee Weapon 2 | . . 13 1 . . . . Naked Turns . | . . . . . . . . Heaviest Build 51 | 14 27 26 35 31 44 44 51 Greatest Support 80 | 40 40 40 40 40 60 80 80 Greatest Overweight (x) 4 | . . . . . 1 4 . Average Overweight (x) . | . . . . . . . . Largest Inventory Capacity 15 | 8 10 10 10 10 10 10 15 Average Capacity 9 | 7 9 10 10 10 10 7 11 Most Carried 15 | 2 10 10 10 10 10 10 15 Average Carried 8 | 1 8 9 9 10 9 6 9 Final Capacity 15 | 8 10 10 10 10 10 5 15 Final Carried 15 | 2 10 10 10 10 10 5 15 Class Distribution -------------------- 59% | Mutant 38% | Scavenger-Mutant Dominant Class ---------------- Mutant | -10/Materials Mutant | -10/Mines Scavenger-Mutant | -9/Materials Mutant | -9/Mines Mutant | -8/Materials Scavenger-Mutant | -8/Garrison Scavenger-Mutant | -8/Materials Resources | -11 -10 -10 -9 -9 -8 -8 -8 ----------- Run | Scr Mat Min Mat Min Mat Gar Mat Matter Collected 2389 | 292 379 114 635 89 371 410 99 Remotely . | . . . . . . . . Salvage Created 3438 | 167 644 23 962 267 770 503 102 Parts 189 | 16 40 8 56 11 22 24 12 Haulers Intercepted 4 | . 2 . 2 . . . . Recyclers Shooed 2 | . 1 . . 1 . . . Parts Field Recycled . | . . . . . . . . Retrieved Matter . | . . . . . . . . Parts Self-Destructed . | . . . . . . . . Prevented . | . . . . . . . . Kills | -11 -10 -10 -9 -9 -8 -8 -8 ------- Run | Scr Mat Min Mat Min Mat Gar Mat Combat Hostiles Destroyed 102 | . 18 3 33 9 25 12 2 Melee 7 | . . . 5 . 1 1 . Cannons 51 | . 18 . 19 1 3 8 2 AOE 27 | . . 3 3 6 13 2 . Classes Destroyed 13 | 2 5 1 1 . 2 2 . Worker 3 | . . 1 . 1 . . 1 Builder 1 | . . . . . 1 . . Tunneler 6 | 5 . . 1 . . . . Hauler 4 | . 2 . 2 . . . . Recycler 6 | 1 3 . . 2 . . . Operator 4 | . 2 . 1 . . . 1 Watcher 6 | . 2 . 1 . 1 2 . Swarmer 29 | . 9 3 10 7 . . . Grunt 54 | . 9 . 16 2 23 4 . Brawler 2 | . . . . . . 2 . Duelist 3 | . . . . . 2 1 . Sentry 13 | . . . 7 . . 4 2 Behemoth 1 | . . . . . . 1 . Best Kill Streak 9 | 2 4 4 6 5 9 3 1 Combat Bots Only 9 | . 3 3 6 3 9 3 1 Max Kills in Single Turn 3 | 1 1 2 3 3 3 1 1 Gunslinging . | . . . . . . . . Exploded 3 | . . 2 3 3 3 1 . Melee 1 | . . . 1 . 1 1 . Uniques/NPCs Destroyed . | . . . . . . . . Combat | -11 -10 -10 -9 -9 -8 -8 -8 -------- Run | Scr Mat Min Mat Min Mat Gar Mat Damage Taken 6178 | . 503 23 1316 213 1491 2577 55 Core 948 | . 137 . 225 34 92 434 26 Absorbed by Shields 93 | . . . . . . 93 . Regen/Repaired (Parts) 359 | . 124 . 235 . . . . Core Remaining (%) 60 | 100 . 45 . 35 . . . Volleys Fired 260 | 12 82 3 82 6 36 32 7 Largest 2 | 2 1 1 1 1 1 2 1 Hottest 150 | 70 39 33 39 39 39 150 53 Shots Fired 281 | 24 82 3 82 6 36 41 7 Gun 38 | 24 . . . . . 14 . Cannon 220 | . 82 . 81 2 25 23 7 Launcher 23 | . . 3 1 4 11 4 . Special . | . . . . . . . . Kinetic 232 | 12 82 . 81 2 25 23 7 Thermal 26 | 12 . . . . . 14 . Explosive 23 | . . 3 1 4 11 4 . Electromagnetic . | . . . . . . . . Robot Hit Streak 12 | 5 12 . 11 1 11 9 8 Robot Miss Streak 5 | 3 4 . 3 1 2 5 3 Penetration Max . | . . . . . . . . Secondary Targets . | . . . . . . . . Shots Hit Robots 287 | 13 53 6 97 8 46 54 10 Core Hits 163 | 8 27 4 30 6 42 37 9 Critical Kills 1 | . . . 1 . . . . Critical Parts Destroyed 19 | . . . 8 1 8 2 . Critical Strikes 27 | . 1 . 13 1 9 3 . Burn 1 | . . . . . . 1 . Blast 6 | . 1 . 4 . 1 . . Smash 20 | . . . 9 1 8 2 . Melee Attacks 129 | . . 6 48 10 25 33 7 Impact 99 | . . . 48 10 25 16 . Slashing . | . . . . . . . . Piercing 24 | . . . . . . 17 7 Sneak Attacks 18 | . . 6 5 3 1 . 3 Combat Hostiles . | . . . . . . . . Follow-up Attacks . | . . . . . . . . Damage Inflicted 10705 | 122 1238 226 3132 688 3093 1804 402 Guns 253 | 122 . . . . . 131 . Cannons 3881 | . 1225 . 1280 23 422 752 179 Explosions 2699 | . . 226 165 327 1779 202 . Melee 3859 | . . . 1687 338 892 719 223 Ramming 13 | . 13 . . . . . . Kinetic 3952 | 71 1225 . 1280 23 422 752 179 Thermal 182 | 51 . . . . . 131 . Explosive 2699 | . . 226 165 327 1779 202 . Electromagnetic . | . . . . . . . . Impact 3208 | . . . 1687 338 892 291 . Slashing . | . . . . . . . . Piercing 651 | . . . . . . 428 223 Highest Corruption . | . . . . . . . . Average Corruption . | . . . . . . . . Corruption Purged . | . . . . . . . . Corruption Blocked . | . . . . . . . . Overload Shots . | . . . . . . . . Overflow Damage 1159 | . 13 . 512 141 410 83 . Projectiles 41 | . 13 . 12 . 12 4 . Explosions 35 | . . . . 17 18 . . Melee 1083 | . . . 500 124 380 79 . Knockbacks 58 | . 10 . 18 1 17 10 2 Impact 12 | . . . 5 1 6 . . Kinetic 37 | . 10 . 11 . 6 8 2 Secondary 9 | . . . 2 . 5 2 . Self-Inflicted Damage 143 | . . . 10 71 62 . . Shots 5 | . . . 1 2 2 . . Rammed 1 | . 1 . . . . . . Targets Rammed 1 | . 1 . . . . . . Kicked . | . . . . . . . . Crushed . | . . . . . . . . Highest Temperature 303 | 100 42 . 147 . 303 120 37 Average Temperature 52 | 41 16 . 50 . 93 33 16 Received Heat Transfer 2085 | . 132 . 567 48 774 546 18 Effects 1 | . . . . . 1 . . Energy Bleed 1 | . . . . . 1 . . Siege Activations . | . . . . . . . . Robots Corrupted . | . . . . . . . . Combat Hostiles . | . . . . . . . . Parts Fried 19 | . . . 7 3 6 3 . Impact Corruptions 43 | . . . 19 5 16 3 . Robots Melted . | . . . . . . . . Combat Hostiles . | . . . . . . . . Parts Melted 1 | 1 . . . . . . . Heat Transferred 548 | 148 . . . . . 400 . Parts Sabotaged . | . . . . . . . . Parts Stolen . | . . . . . . . . Parts Stripped . | . . . . . . . . Power Chain Reactions . | . . . . . . . . Missiles Intercepted . | . . . . . . . . Alert | -11 -10 -10 -9 -9 -8 -8 -8 ------- Run | Scr Mat Min Mat Min Mat Gar Mat Peak Influence 665 | 30 319 117 665 607 589 615 415 Initial 382 | . 19 83 . 230 162 382 299 Average 308 | 14 158 72 402 457 375 484 344 Maximum Alert Level 2 | . 1 . 2 2 2 2 2 Low Security (%) 35 | 100 61 100 22 . 12 . . Level 1 26 | . 38 . 16 15 48 31 77 Level 2 38 | . . . 60 84 39 68 22 Level 3 . | . . . . . . . . Level 4 . | . . . . . . . . Level 5 . | . . . . . . . . High Security . | . . . . . . . . Max Security . | . . . . . . . . Squads Dispatched 18 | . 3 . 6 . 8 . 1 Investigation 7 | . 2 . 3 . 2 . . Extermination . | . . . . . . . . Reinforcement 7 | . 1 . 2 . 3 . 1 Assault 1 | . . . 1 . . . . Garrison 3 | . . . . . 3 . . Intercept . | . . . . . . . . Searches Triggered . | . . . . . . . . Construction Impeded 1 | . . . . . 1 . . Haulers Reinforced . | . . . . . . . . Active Scanning Responses . | . . . . . . . . Cargo Convoy Interrupts . | . . . . . . . . Stealth | -11 -10 -10 -9 -9 -8 -8 -8 --------- Run | Scr Mat Min Mat Min Mat Gar Mat Distress Signals 7 | . . . 2 . . 3 2 Communications Jammed 2 | . . . . . 2 . . Distress Signals 2 | . . . . . 2 . . Times Spotted 151 | . 30 3 48 11 31 18 10 Peak Tracking Total 8 | . 5 3 7 4 8 5 3 Tactical Retreats 7 | . . . 2 2 2 1 . Traps | -11 -10 -10 -9 -9 -8 -8 -8 ------- Run | Scr Mat Min Mat Min Mat Gar Mat Traps Triggered 3 | . 1 . 1 . . 1 . Indirectly . | . . . . . . . . Trap Hack Attempts . | . . . . . . . . Triggered . | . . . . . . . . Disarmed . | . . . . . . . . Reprogrammed . | . . . . . . . . Reused . | . . . . . . . . Traps Extracted . | . . . . . . . . Installed . | . . . . . . . . Triggered . | . . . . . . . . Machines | -11 -10 -10 -9 -9 -8 -8 -8 ---------- Run | Scr Mat Min Mat Min Mat Gar Mat Machines Disabled 5 | . 2 . 1 . . 2 . Max in Single Turn 1 | . 1 . 1 . . 1 . Garrison Relay 2 | . . . . . . 2 . Machines Sabotaged . | . . . . . . . . Garrisons Compromised . | . . . . . . . . Overloaded Fab Kills . | . . . . . . . . Hacking | -11 -10 -10 -9 -9 -8 -8 -8 --------- Run | Scr Mat Min Mat Min Mat Gar Mat Machines Accessed 24 | . 9 1 7 1 6 . . Terminals 14 | . 6 1 4 . 3 . . Fabricators . | . . . . . . . . Repair Stations 2 | . 1 . 1 . . . . Recycling Units 2 | . 2 . . . . . . Scanalyzers 4 | . . . 2 . 2 . . Garrison Access 1 | . . . . . 1 . . Total Hacks 78 | . 25 2 27 1 23 . . Successful 56 | . 19 1 20 1 15 . . Failed 21 | . 6 1 7 . 7 . . Catastrophic . | . . . . . . . . Database Lockouts 1 | . . . . . 1 . . Manual 35 | . 10 2 11 . 12 . . Terminals 48 | . 16 2 15 . 15 . . Fabricators . | . . . . . . . . Repair Stations 11 | . 5 . 6 . . . . Recycling Units 4 | . 4 . . . . . . Scanalyzers 13 | . . . 6 . 7 . . Garrison Access 1 | . . . . . 1 . . Terminal Hacks 25 | . 10 1 7 1 6 . . Part Schematic 4 | . 1 . 3 . . . . Robot Schematic 1 | . 1 . . . . . . Robot Analysis 5 | . 3 1 . . 1 . . Prototype ID Bank 6 | . 3 . 3 . . . . Open Door 1 | . . . . 1 . . . Branch Access Points 1 | . . . . . 1 . . Terminal Index 2 | . 1 . . . 1 . . Scanalyzer Index 2 | . . . 1 . 1 . . Unreport Threat 1 | . . . . . 1 . . Locate Traps 2 | . 1 . . . 1 . . Fabricator Hacks . | . . . . . . . . Repair Station Hacks 10 | . 4 . 6 . . . . Scan Component 5 | . 2 . 3 . . . . Repair 5 | . 2 . 3 . . . . Recycling Unit Hacks 1 | . 1 . . . . . . Report Inventory 1 | . 1 . . . . . . Scanalyzer 8 | . . . 4 . 4 . . Insert Component 4 | . . . 2 . 2 . . Analyze 4 | . . . 2 . 2 . . Garrison Access Hacks 1 | . . . . . 1 . . Unlock Access 1 | . . . . . 1 . . Unauthorized Hacks 11 | . 4 . 3 . 4 . . Terminals 5 | . 2 . 1 . 2 . . Botnet 5 | . 2 . 1 . 2 . . Fabricators . | . . . . . . . . Repair Stations . | . . . . . . . . Recycling Units 2 | . 2 . . . . . . Reject 1 | . 1 . . . . . . Tunnel 1 | . 1 . . . . . . Scanalyzers 4 | . . . 2 . 2 . . Extract 4 | . . . 2 . 2 . . Garrison Access . | . . . . . . . . Data Cores Recovered 1 | . 1 . . . . . . Used 1 | . 1 . . . . . . Hacking Detections 20 | . 9 1 5 . 5 . . Full Trace Events . | . . . . . . . . Feedback Events . | . . . . . . . . Feedback Blocked . | . . . . . . . . Robot Schematics Acquired 1 | . 1 . . . . . . Robots Built . | . . . . . . . . Authchips . | . . . . . . . . Time . | . . . . . . . . Total Robot Build Rating . | . . . . . . . . Part Schematics Acquired 18 | . 1 . 9 . 8 . . Parts Built . | . . . . . . . . Authchips . | . . . . . . . . Time . | . . . . . . . . Total Part Build Rating . | . . . . . . . . Parts Repaired 5 | . 2 . 3 . . . . Time 155 | . 52 . 103 . . . . Parts Recycled . | . . . . . . . . Recycled Matter . | . . . . . . . . Retrieved Matter . | . . . . . . . . Retrieved Components . | . . . . . . . . Parts Scanalyzed 4 | . . . 2 . 2 . . Part Schematics Acquired 3 | . . . 1 . 2 . . Parts Damaged . | . . . . . . . . Bothacking | -11 -10 -10 -9 -9 -8 -8 -8 ------------ Run | Scr Mat Min Mat Min Mat Gar Mat Used RIF Installer 1 | . . . . . . 1 . Robots Hacked 2 | . . 2 . . . . . Non-combat 2 | . . 2 . . . . . Combat . | . . . . . . . . Robot Hacks Applied 3 | . . 3 . . . . . parse_system 2 | . . 2 . . . . . no_distress 1 | . . 1 . . . . . Relay Couplers Released 8 | . . . . . . 8 . Machine Destruction 8 | . . . . . . 8 . Fabnet Peak Effective % . | . . . . . . . . Robots Rewired . | . . . . . . . . Allies Hacked . | . . . . . . . . Hacks Repelled . | . . . . . . . . Allies | -11 -10 -10 -9 -9 -8 -8 -8 -------- Run | Scr Mat Min Mat Min Mat Gar Mat Total Allies . | . . . . . . . . Largest Group . | . . . . . . . . Highest-Rated Group . | . . . . . . . . Highest-Rated Ally . | . . . . . . . . Total Orders . | . . . . . . . . Ally Attacks . | . . . . . . . . Total Damage . | . . . . . . . . Kills . | . . . . . . . . Allies Corrupted . | . . . . . . . . Allies Melted . | . . . . . . . . Intel | -11 -10 -10 -9 -9 -8 -8 -8 ------- Run | Scr Mat Min Mat Min Mat Gar Mat Robot Analysis Total 5 | . 3 1 . . 1 . . Derelict Logs Recovered 2 | . . 1 . 1 . . . Drone Launches . | . . . . . . . . Drone Recoveries . | . . . . . . . . Exploration | -11 -10 -10 -9 -9 -8 -8 -8 ------------- Run | Scr Mat Min Mat Min Mat Gar Mat Turns Passed 6656 | 325 1275 887 1326 729 540 1232 342 Spaces Moved 3317 | 175 617 531 524 420 247 635 168 Core 6 | 3 . . . . . 3 . Treads 3029 | 172 617 531 524 420 42 555 168 Legs . | . . . . . . . . Wheels 282 | . . . . . 205 77 . Hover . | . . . . . . . . Flight . | . . . . . . . . Fastest Speed 50 | 50 160 160 160 160 115 100 160 Average Speed 156 | 158 160 160 160 160 123 154 160 Slowest Speed 250 | 160 160 160 160 160 240 250 160 Overloaded Moves . | . . . . . . . . Propulsion Burnouts . | . . . . . . . . Robots Hopped . | . . . . . . . . Cave-ins Triggered . | . . . . . . . . Exploration Rate (%) 54 | 9 93 97 50 97 16 48 24 Regions Visited 7 Branch Regions 2 Pre-discovered Areas 2 | . 1 1 . . . . . Known Exits Taken 1 | . . . . . 1 . . Unknown Exits Taken 5 | 1 1 1 1 1 . . . Scrap Searched 4 | . . 2 . 2 . . . Spaces Dug 92 | . . 20 12 41 18 . 1 Terrain Destroyed 193 | . 2 20 16 53 73 28 1 Melee 6 | . . . 4 . 1 . 1 Projectile 10 | . 2 . 4 . 4 . . AOE 177 | . . 20 8 53 68 28 . Terrain Rammed . | . . . . . . . . Walls Destroyed . | . . . . . . . . Machines Disabled . | . . . . . . . . Actions | -11 -10 -10 -9 -9 -8 -8 -8 --------- Run | Scr Mat Min Mat Min Mat Gar Mat Total 4248 | 198 823 562 833 449 393 769 221 Wait 344 | 1 89 16 135 10 56 13 24 Move 3311 | 174 616 530 523 419 247 634 168 Hop . | . . . . . . . . Pick Up 51 | 2 15 2 5 . 5 12 10 Fast Attach 34 | 7 1 . 4 . 5 16 1 Attach 18 | . 1 . 7 . 4 6 . Detach 2 | . . . 2 . . . . Swap 56 | 1 9 3 17 4 8 12 2 Drop 42 | 1 9 2 10 . 7 11 2 Fire 260 | 12 82 3 82 6 36 32 7 Melee 129 | . . 6 48 10 25 33 7 Ram . | . . . . . . . . Kick . | . . . . . . . . Crush 1 | . 1 . . . . . . Escape Stasis . | . . . . . . . . Rewire . | . . . . . . . . Trap . | . . . . . . . . Miscellaneous . | . . . . . . . . Route ------- -11/Scrapyard -10/Materials (discovered 5 exits: *Mat x3 / *Min x2) -10/Mines (discovered 2 exits: *Mat x2) -9/Materials (discovered 2 exits: *Mat / *Min) -9/Mines (discovered 2 exits: *Mat x2) -8/Materials (discovered 2 exits: Fac / Gar) -8/Garrison -8/Materials History --------- Turn | Location | Event 40 | -11/Scrapyard | Discovered new exit (range 15) 326 | -11/Scrapyard | Entered Materials 327 | -10/Materials | Build established: Mutant 615 | -10/Materials | Discovered new exit (range 14) 749 | -10/Materials | Discovered new exit (range 16) 985 | -10/Materials | Core integrity fell below 50% 1046 | -10/Materials | Discovered new exit (range 16) 1158 | -10/Materials | Discovered new exit (range 15) 1337 | -10/Materials | Repaired Lgt. Treads 1365 | -10/Materials | Repaired Lgt. Treads 1425 | -10/Materials | Discovered new exit (range 10) 1601 | -10/Materials | Entered Mines 1608 | -10/Mines | Discovered new exit (range 8) 1647 | -10/Mines | Received a Rocket Launcher from a helpful Derelict 1904 | -10/Mines | Discovered new exit (range 12) 2488 | -10/Mines | Entered Materials 2488 | -9/Materials | Evolved 2 slots: Utility x2 2934 | -9/Materials | Discovered new exit (range 12) 3031 | -9/Materials | Build established: Scavenger-Mutant 3326 | -9/Materials | Core integrity fell below 50% 3479 | -9/Materials | Discovered new exit (range 16) 3625 | -9/Materials | Repaired Lgt. Treads 3681 | -9/Materials | Repaired Cld. Ion Engine 3688 | -9/Materials | First assault squad dispatched 3711 | -9/Materials | Repaired Lgt. Treads 3814 | -9/Materials | Entered Mines 3880 | -9/Mines | Build established: Mutant 3983 | -9/Mines | Found the Drone Emporium 3997 | -9/Mines | Discovered new exit (range 3) 4239 | -9/Mines | Discovered new exit (range 9) 4241 | -9/Mines | Learned location of 1 exit from Materials 4543 | -9/Mines | Entered Materials 4543 | -8/Materials | Evolved 2 slots: Propulsion x1, Utility x1 4544 | -8/Materials | Identified exit to Factory 4795 | -8/Materials | Central database locked down 4853 | -8/Materials | Garrison activated, responded to threat 4913 | -8/Materials | Destroyed 9 combat bots 5083 | -8/Materials | Identified exit to Garrison 5083 | -8/Materials | Entered Garrison 5091 | -8/Garrison | Installed Relay Interface Framework 5211 | -8/Garrison | Spotted B-75 Beast 5237 | -8/Garrison | Lost 8 parts (2n4u2w) 5263 | -8/Garrison | Core integrity fell below 50% 5293 | -8/Garrison | Destroyed B-75 Beast 5320 | -8/Garrison | Lost 6 parts (1p2n2u1w) 5584 | -8/Garrison | Triggered checkpoint 5604 | -8/Garrison | Garrison Relay disabled 5611 | -8/Garrison | Build established: Scavenger-Mutant 5664 | -8/Garrison | Triggered checkpoint 5730 | -8/Garrison | Discovered new exit (range 15) 5780 | -8/Garrison | Triggered checkpoint 5802 | -8/Garrison | Garrison Relay disabled 5878 | -8/Garrison | Core integrity fell below 20% 6315 | -8/Garrison | Entered Materials 6657 | -8/Materials | Destroyed by S-10 Pest with Light Assault Rifle Last Messages --------------- 06496_ Y-45 Defender destroyed. 06506_ Acquired Lgt. Treads. 06509_ Acquired 46 matter. 06519_ K-01 Serf cleans the Material Compactor. 06521_ Acquired Lgt. Treads. 06526_ Acquired Imp. Treads. 06526_ K-01 Serf collects debris. 06535_ Acquired Hvy. Particle Cannon. 06537_ K-01 Serf collects debris. 06538_ R-06 Scavenger collects Beam Rifle. 06539_ Acquired EM Pulse Cannon. 06541_ R-06 Scavenger collects Imp. Ion Engine. 06548_ Acquired Adv. Treads. 06580_ Y-45 Defender destroyed. 06585_ Acquired Lgt. Armor Plating. 06587_ Dropped Lgt. Treads. 06587_ Acquired Lgt. Treads. 06596_ Acquired 18 matter. 06637_ Sneak attack on A-02 Transporter. 06651_ W-25 Informer sends out distress signal. Map ----- +----------------------------------------------------+ | ???????????????????????????## # ???? | | ???????????????????????????## # ???? | | ?????????????????############ + ???? | | ?????????????????############ # ???? | | ?????????????????## # # ???? | | ?????????????????## [[# # ???? | | ?????????????????## [!# # ???? | | ?????????????????## """ # ##???? | | ?????????????????## """ !# ##???? | | ????????????????### """ %+ = ##???? | | ????????????????## #! ##???? | | ????????????????### # ###??? | | ????????????????############# ###??? | | ?????????????????########### ##??? | | ??????????????????????????## ##??? | | ??????????????????????????## ##??? | | ??????????????????????????## ##??? | | ?????????????????????????### ####? | | ?????????????????????????#####+######? | | ?????????????????????????## ##? | | ?????????????????????????## ##? | | ?????????????????????????## ##? | | ?????????????????????????## ##? | | ??????## ??????? ########## """ ##? | | ??????## ########## """"" ##? | | ??????## a ss @/ """"" ##? | | ??????## ########## """"" ##? | | ??????## ########## [""" ##? | | ## ####################? | | ###+#### ### ###########? | | # ###! [ ###????????? | | # ?[ ### !##?#####???? | | # ??## ! ##?#####???? | | """ ???## ##? [[##???? | | ? """"" ### ### [[##???? | | ?## """"" ##########+###### !!##???? | | ?## """"" # + !!##???? | | ?## """ # ## **##???? | | ?## # """ ## **##???? | | ?## !# """ ## #######??? | | ?## ####### # """ ## ##!!###??? | | ?## ####### # ## !##??? | | ?## ##???## ##+##### "T" ##??? | | ?## ##???## """ !##??? | | ?## ##???## ! !##??? | | ?## ##???## !!###??? | | ?## ##???##########################??? | | ?## ##############################???? | | ?##=##############???????????????????? | | ?##%### ##???????????????????? | +----------------------------------------------------+ Best States ------------- Heat Dissipation 58 Coolant Potential 65 Energy Generation 16 Energy Capacity 290 Matter Stores 300 Matter Capacity 300 Sight Range 16 Terrain Scan Density 10 Jamming Range 12 Armor Coverage 600 Phase Shifting 5 Evasion (%) 45 Targeting Accuracy 8 Core Analysis 9 Recoil Reduction 3 Matter Filtering 30 Kinecelleration 30 Offensive Hacking 10 Item Schematics ----------------- Hcp. Storage Unit | -10/Materials | Hacked Cld. Ion Engine | -9/Materials | Scanalyzed Lgt. Armor Plating | -9/Materials | Extracted Shield Generator | -9/Materials | Extracted Imp. Light Cannon | -9/Materials | Extracted Rocket Launcher | -9/Materials | Extracted Mni. Grenade Launcher | -9/Materials | Hacked Arm. Wheel | -9/Materials | Hacked Trap Extractor | -9/Materials | Hacked Sml. Storage Unit | -9/Materials | Extracted Core Analyzer | -8/Materials | Scanalyzed Spread Laser | -8/Materials | Extracted Cesium-ion Thruster | -8/Materials | Extracted Arm. Huge Wheel | -8/Materials | Scanalyzed Com. Battery | -8/Materials | Extracted Carbon-fiber Leg | -8/Materials | Extracted Particle Charger | -8/Materials | Extracted Propulsion Shielding | -8/Materials | Extracted Robot Schematics ------------------ O-16 Technician | -10/Materials | Hacked Fabricated ------------ Nothing Alien Tech Used ----------------- None Achievements -------------- None Challenges ------------ None Game ------ Seed ArmoredBattleRedirector Manual? 0 Play Time 01:10:52 Cumulative 113.7 hours Start 2022.12.03 @ 11:56:50 End 2022.12.03 @ 14:00:10 Sessions 3 Manual Loads 0 Difficulty Rogue Special Mode None Game No. 173 Rogue 173 Adventurer 0 Explorer 0 Win Type - Total 1 Types 0/0/0/1/0/0/0/0/0 Lore% 60 Gallery% 68 Achievement% 52 Wizard Run 0 Options --------- ASCII 0 Keyboard 0 Movement Numpad Keybinds 0 Fullscreen 1 Font 14/SmallcapsGlow Map View 84x54 Tactical HUD 1 Map Filters NONE Filters NONE Steam 1 RUN: 35085ecd-0f54-4222-98fb-c4ce4a183573